[Event "56th Biel Festival Rapid 2023"]
[Site "Biel"]
[Date "2024.04.13"]
[Round "9.11"]
[White "Kocharin, Timur"]
[Black "Illijin Neboisa"]
[Result "*"]
[WhiteElo "2225"]
[BlackElo "2140"]
[PlyCount "57"]
[EventDate "2023.07.16"]
[EventType "swiss"]
[EventCountry "SUI"]
[TimeControl "900+5"]

1. d4 {[%emt 0:00:30]} Nf6 {[%emt 0:00:04]} 2. c4 {[%emt 0:00:02]} e6 {[%emt 0:00:02]} 3. Nf3 {[%emt 0:00:01]} d5 {[%emt 0:00:03]} 4. g3 {[%emt 0:00:03]} dxc4 {[%emt 0:00:05]} 5. Bg2 {[%emt 0:00:02]} c6 {[%emt 0:00:01]} 6. Ne5 {[%emt 0:00:09]} Nbd7 {[%emt 0:00:27]} 7. Nxc4 {[%emt 0:00:09]} Be7 {[%emt 0:00:18]} 8. O-O {[%emt 0:00:14]} O-O {[%emt 0:00:16]} 9. Nc3 {[%emt 0:00:18]} c5 {[%emt 0:00:52]} 10. dxc5 {[%emt 0:01:01]} Nxc5 {[%emt 0:00:10]} 11. Qc2 {[%emt 0:00:03]} Bd7 {[%emt 0:01:10]} 12. Ne5 {[%emt 0:00:08]} Qc8 {[%emt 0:00:42]} 13. Rd1 {[%emt 0:00:23]} Rd8 {[%emt 0:01:38]} 14. Be3 {[%emt 0:00:17]} Be8 {[%emt 0:00:47]} 15. Rac1 {[%emt 0:00:46]} Rxd1+ {[%emt 0:00:12]} 16. Rxd1 {[%emt 0:00:15]} Na4 {[%emt 0:00:18]} 17. Rc1 {[%emt 0:00:14]} Nxc3 {[%emt 0:00:02]} 18. Qxc3 {[%emt 0:00:02]} Qxc3 {[%emt 0:00:33]} 19. Rxc3 {[%emt 0:00:02]} Bd6 {[%emt 0:00:20]} 20. Nc4 {[%emt 0:00:06]} Bb4 {[%emt 0:00:01]} 21. Rb3 {[%emt 0:00:03]} a5 {[%emt 0:00:31]} 22. Bxb7 {[%emt 0:00:06]} Rd8 {[%emt 0:00:07]} 23. Rd3 {[%emt 0:00:10]} Rxd3 {[%emt 0:00:17]} 24. exd3 {[%emt 0:00:02]} Nd5 {[%emt 0:00:39]} 25. a3 {[%emt 0:00:15]} Nxe3 {[%emt 0:01:56]} 26. fxe3 {[%emt 0:00:03]} Be7 {[%emt 0:00:36]} 27. Nxa5 {[%emt 0:00:03]} Bb5 {[%emt 0:00:06]} 28. d4 {[%emt 0:00:13]} Bd8 {[%emt 0:00:20]} 29. Nc6 {[%emt 0:00:23]} *

[Event "56th Biel Festival Rapid 2023"]
[Site "Biel"]
[Date "2024.04.13"]
[Round "9.14"]
[White "Alic, Miran"]
[Black "Matta, Vinay Kumar"]
[Result "*"]
[WhiteElo "2011"]
[BlackElo "2111"]
[PlyCount "48"]
[EventDate "2023.07.16"]
[EventType "swiss"]
[EventCountry "SUI"]
[TimeControl "900+5"]

1. d4 {[%emt 0:00:04]} Nf6 {[%emt 0:00:02]} 2. Nf3 {[%emt 0:00:05]} e6 {[%emt 0:00:02]} 3. g3 {[%emt 0:00:00]} c5 {[%emt 0:00:02]} 4. Bg2 {[%emt 0:00:02]} d5 {[%emt 0:00:03]} 5. O-O {[%emt 0:00:19]} Nc6 {[%emt 0:00:02]} 6. c4 {[%emt 0:00:01]} dxc4 {[%emt 0:00:12]} 7. Ne5 {[%emt 0:00:02]} Nd5 {[%emt 0:00:54]} 8. Nxc6 {[%emt 0:01:17]} bxc6 {[%emt 0:00:05]} 9. Na3 {[%emt 0:00:25]} cxd4 {[%emt 0:00:19]} 10. Qxd4 {[%emt 0:00:23]} Qb6 {[%emt 0:00:49]} 11. Qxb6 {[%emt 0:00:11]} axb6 {[%emt 0:00:03]} 12. Nxc4 {[%emt 0:00:02]} Bc5 {[%emt 0:00:31]} 13. Ne5 {[%emt 0:00:41]} Bb7 {[%emt 0:00:04]} 14. Rd1 {[%emt 0:00:35]} f6 {[%emt 0:00:30]} 15. Nd3 {[%emt 0:00:12]} Be7 {[%emt 0:00:07]} 16. e4 {[%emt 0:02:09]} Nc7 {[%emt 0:00:20]} 17. e5 {[%emt 0:00:45]} O-O-O {[%emt 0:00:35]} 18. Be3 {[%emt 0:00:17]} c5 {[%emt 0:00:14]} 19. f4 {[%emt 0:02:35]} Bxg2 {[%emt 0:00:17]} 20. Kxg2 {[%emt 0:00:02]} Nd5 {[%emt 0:00:02]} 21. Bf2 {[%emt 0:00:30]} Kb7 {[%emt 0:00:02]} 22. b3 {[%emt 0:00:28]} Nc3 {[%emt 0:00:31]} 23. Rd2 {[%emt 0:00:00]} Rd5 {[%emt 0:00:17]} 24. Kf3 {[%emt 0:01:09]} Rhd8 {[%emt 0:00:10]} *

[Event "56th Biel Festival Rapid 2023"]
[Site "Biel"]
[Date "2024.04.13"]
[Round "9.16"]
[White "Toenz, Arthur"]
[Black "von Burg, Carl Alexander"]
[Result "*"]
[WhiteElo "2040"]
[BlackElo "1537"]
[PlyCount "47"]
[EventDate "2023.07.16"]
[EventType "swiss"]
[EventCountry "SUI"]
[TimeControl "900+5"]

1. d4 {[%emt 0:00:03]} d5 {[%emt 0:00:03]} 2. Bf4 {[%emt 0:00:02]} c5 {[%emt 0:00:07]} 3. dxc5 {[%emt 0:00:05]} Nc6 {[%emt 0:00:24]} 4. e3 {[%emt 0:00:10]} e6 {[%emt 0:00:12]} 5. Nf3 {[%emt 0:00:30]} Bxc5 {[%emt 0:00:07]} 6. Be2 {[%emt 0:00:24]} Nf6 {[%emt 0:00:14]} 7. O-O {[%emt 0:00:06]} O-O {[%emt 0:00:03]} 8. a3 {[%emt 0:00:02]} Ne4 {[%emt 0:01:11]} 9. b4 {[%emt 0:00:20]} Bd6 {[%emt 0:00:11]} 10. Bxd6 {[%emt 0:00:04]} Qxd6 {[%emt 0:00:08]} 11. c4 {[%emt 0:00:05]} dxc4 {[%emt 0:00:44]} 12. Bxc4 {[%emt 0:00:05]} Ne5 {[%emt 0:00:34]} 13. Qxd6 {[%emt 0:01:31]} Nxf3+ {[%emt 0:00:03]} 14. gxf3 {[%emt 0:00:05]} Nxd6 {[%emt 0:00:02]} 15. Bb3 {[%emt 0:00:09]} e5 {[%emt 0:00:27]} 16. Nc3 {[%emt 0:00:39]} Bh3 {[%emt 0:00:36]} 17. Rfd1 {[%emt 0:00:11]} Nf5 {[%emt 0:00:03]} 18. Bd5 {[%emt 0:00:51]} Rab8 {[%emt 0:01:52]} 19. Ne2 {[%emt 0:01:15]} h6 {[%emt 0:00:43]} 20. f4 {[%emt 0:00:13]} Bg4 {[%emt 0:00:26]} 21. Rd2 {[%emt 0:00:45]} Bxe2 {[%emt 0:00:25]} 22. Rxe2 {[%emt 0:00:02]} exf4 {[%emt 0:00:02]} 23. exf4 {[%emt 0:00:07]} Nd4 {[%emt 0:01:05]} 24. Re7 {[%emt 0:00:43]} *

[Event "56th Biel Festival Rapid 2023"]
[Site "Biel"]
[Date "2024.04.13"]
[Round "9.17"]
[White "Haugner, Jan"]
[Black "Paholok, Igor"]
[Result "*"]
[WhiteElo "2066"]
[BlackElo "1710"]
[PlyCount "37"]
[EventDate "2023.07.16"]
[EventType "swiss"]
[EventCountry "SUI"]
[TimeControl "900+5"]

1. e4 {[%emt 0:00:03]} e6 {[%emt 0:00:01]} 2. d4 {[%emt 0:00:01]} d5 {[%emt 0:00:01]} 3. Nc3 {[%emt 0:00:03]} Bb4 {[%emt 0:00:04]} 4. e5 {[%emt 0:00:01]} b6 {[%emt 0:00:25]} 5. Qg4 {[%emt 0:00:06]} Bf8 {[%emt 0:00:02]} 6. Nf3 {[%emt 0:00:12]} Bb7 {[%emt 0:00:35]} 7. Bg5 {[%emt 0:00:34]} Qd7 {[%emt 0:00:09]} 8. Bb5 {[%emt 0:00:18]} Nc6 {[%emt 0:00:02]} 9. O-O {[%emt 0:00:15]} h6 {[%emt 0:00:06]} 10. Be3 {[%emt 0:00:49]} O-O-O {[%emt 0:00:20]} 11. a4 {[%emt 0:00:32]} a5 {[%emt 0:01:17]} 12. h4 {[%emt 0:00:27]} h5 {[%emt 0:06:02]} 13. Qh3 {[%emt 0:00:58]} Nh6 {[%emt 0:00:20]} 14. Bxh6 {[%emt 0:00:41]} gxh6 {[%emt 0:00:01]} 15. Ne2 {[%emt 0:00:38]} Be7 {[%emt 0:00:15]} 16. Nf4 {[%emt 0:00:07]} Rhg8 {[%emt 0:00:41]} 17. Nxh5 {[%emt 0:00:23]} Rdf8 {[%emt 0:00:49]} 18. Nf6 {[%emt 0:00:59]} Bxf6 {[%emt 0:00:04]} 19. exf6 {[%emt 0:00:02]} *

[Event "56th Biel Festival Rapid 2023"]
[Site "Biel"]
[Date "2024.04.13"]
[Round "9.18"]
[White "Sukandar, Irine Kharisma"]
[Black "Wigger, Michael"]
[Result "*"]
[WhiteElo "2358"]
[BlackElo "1878"]
[PlyCount "67"]
[EventDate "2023.07.16"]
[EventType "swiss"]
[EventCountry "SUI"]
[TimeControl "900+5"]

1. e4 {[%emt 0:00:04]} Nf6 {[%emt 0:00:02]} 2. e5 {[%emt 0:00:03]} Nd5 {[%emt 0:00:01]} 3. c4 {[%emt 0:00:03]} Nb6 {[%emt 0:00:01]} 4. d4 {[%emt 0:00:02]} d6 {[%emt 0:00:02]} 5. exd6 {[%emt 0:00:04]} cxd6 {[%emt 0:00:04]} 6. Nc3 {[%emt 0:00:18]} g6 {[%emt 0:00:04]} 7. Be3 {[%emt 0:00:07]} Bg7 {[%emt 0:00:02]} 8. Rc1 {[%emt 0:00:02]} O-O {[%emt 0:00:08]} 9. b3 {[%emt 0:00:03]} Nc6 {[%emt 0:00:16]} 10. Be2 {[%emt 0:00:03]} e5 {[%emt 0:00:12]} 11. Nf3 {[%emt 0:00:09]} Bg4 {[%emt 0:00:23]} 12. dxe5 {[%emt 0:00:30]} dxe5 {[%emt 0:00:05]} 13. c5 {[%emt 0:00:12]} Nc8 {[%emt 0:00:58]} 14. O-O {[%emt 0:00:18]} N8e7 {[%emt 0:00:19]} 15. h3 {[%emt 0:00:29]} Bxf3 {[%emt 0:01:05]} 16. Bxf3 {[%emt 0:00:02]} Nf5 {[%emt 0:00:02]} 17. Bxc6 {[%emt 0:00:23]} bxc6 {[%emt 0:00:03]} 18. Qf3 {[%emt 0:00:20]} Qc7 {[%emt 0:00:39]} 19. Ne4 {[%emt 0:00:16]} Rad8 {[%emt 0:01:22]} 20. Bg5 {[%emt 0:00:19]} f6 {[%emt 0:00:20]} 21. Be3 {[%emt 0:00:14]} Rd3 {[%emt 0:00:32]} 22. Nd6 {[%emt 0:00:42]} Nd4 {[%emt 0:00:18]} 23. Qe4 {[%emt 0:00:05]} Ne2+ {[%emt 0:00:05]} 24. Kh1 {[%emt 0:00:01]} Nxc1 {[%emt 0:00:01]} 25. Rxc1 {[%emt 0:00:05]} Rd5 {[%emt 0:00:09]} 26. Qc4 {[%emt 0:00:10]} Kh8 {[%emt 0:00:13]} 27. b4 {[%emt 0:00:04]} f5 {[%emt 0:00:18]} 28. f3 {[%emt 0:00:32]} f4 {[%emt 0:00:39]} 29. Bf2 {[%emt 0:00:14]} Rd2 {[%emt 0:00:58]} 30. Bh4 {[%emt 0:00:54]} Rd4 {[%emt 0:00:29]} 31. Qe6 {[%emt 0:00:05]} Rxb4 {[%emt 0:00:53]} 32. Be7 {[%emt 0:00:18]} Rbb8 {[%emt 0:00:03]} 33. Bxf8 {[%emt 0:00:11]} Rxf8 {[%emt 0:00:15]} 34. Rb1 {[%emt 0:00:10]} *

[Event "56th Biel Festival Rapid 2023"]
[Site "Biel"]
[Date "2024.04.13"]
[Round "9.22"]
[White "Markus, David"]
[Black "Vianin, Pascal"]
[Result "*"]
[WhiteElo "1384"]
[BlackElo "2051"]
[PlyCount "73"]
[EventDate "2023.07.16"]
[EventType "swiss"]
[EventCountry "SUI"]
[TimeControl "900+5"]

1. e4 {[%emt 0:00:03]} g6 {[%emt 0:00:02]} 2. d4 {[%emt 0:00:01]} Bg7 {[%emt 0:00:01]} 3. Nc3 {[%emt 0:00:02]} d6 {[%emt 0:00:01]} 4. Bf4 {[%emt 0:00:03]} a6 {[%emt 0:00:03]} 5. Qd2 {[%emt 0:00:05]} b5 {[%emt 0:00:03]} 6. a3 {[%emt 0:00:06]} Nd7 {[%emt 0:00:18]} 7. Nf3 {[%emt 0:00:00]} Bb7 {[%emt 0:00:02]} 8. Bd3 {[%emt 0:00:04]} c5 {[%emt 0:00:03]} 9. d5 {[%emt 0:00:11]} Rc8 {[%emt 0:01:57]} 10. O-O {[%emt 0:00:18]} Ngf6 {[%emt 0:00:08]} 11. Rfe1 {[%emt 0:00:25]} Nh5 {[%emt 0:00:32]} 12. Bh6 {[%emt 0:00:13]} O-O {[%emt 0:00:16]} 13. Bxg7 {[%emt 0:00:03]} Kxg7 {[%emt 0:00:02]} 14. Rad1 {[%emt 0:00:16]} Nhf6 {[%emt 0:00:37]} 15. h3 {[%emt 0:01:04]} Ne8 {[%emt 0:00:36]} 16. Bf1 {[%emt 0:00:26]} Ne5 {[%emt 0:00:07]} 17. Nxe5 {[%emt 0:00:16]} dxe5 {[%emt 0:00:02]} 18. f4 {[%emt 0:00:25]} Qd6 {[%emt 0:00:04]} 19. fxe5 {[%emt 0:02:17]} Qxe5 {[%emt 0:00:02]} 20. Qe3 {[%emt 0:00:05]} Nd6 {[%emt 0:00:12]} 21. Nb1 {[%emt 0:00:09]} Qxb2 {[%emt 0:00:32]} 22. Qc3+ {[%emt 0:00:28]} Qxc3 {[%emt 0:00:13]} 23. Nxc3 {[%emt 0:00:00]} b4 {[%emt 0:00:24]} 24. Nb1 {[%emt 0:00:27]} Nb5 {[%emt 0:00:27]} 25. Bxb5 {[%emt 0:00:11]} axb5 {[%emt 0:00:01]} 26. axb4 {[%emt 0:00:01]} cxb4 {[%emt 0:00:01]} 27. Rd2 {[%emt 0:00:14]} Rc4 {[%emt 0:00:17]} 28. Kf2 {[%emt 0:00:08]} Rfc8 {[%emt 0:00:01]} 29. Ree2 {[%emt 0:00:03]} R8c7 {[%emt 0:01:11]} 30. g4 {[%emt 0:00:19]} Bc8 {[%emt 0:00:12]} 31. Kf3 {[%emt 0:00:09]} h5 {[%emt 0:00:13]} 32. gxh5 {[%emt 0:00:10]} gxh5 {[%emt 0:00:02]} 33. h4 {[%emt 0:00:12]} Bg4+ {[%emt 0:00:02]} 34. Kf4 {[%emt 0:00:21]} Bxe2 {[%emt 0:00:04]} 35. Rxe2 {[%emt 0:00:01]} Rxc2 {[%emt 0:00:14]} 36. Nd2 {[%emt 0:00:02]} b3 {[%emt 0:00:14]} 37. Rg2+ {[%emt 0:00:06]} *

[Event "56th Biel Festival Rapid 2023"]
[Site "Biel"]
[Date "2024.04.13"]
[Round "9.23"]
[White "Ragios, Konstantinos"]
[Black "Schweizer, Samuel"]
[Result "*"]
[WhiteElo "1925"]
[BlackElo "2084"]
[PlyCount "44"]
[EventDate "2023.07.16"]
[EventType "swiss"]
[EventCountry "SUI"]
[TimeControl "900+5"]

1. e4 {[%emt 0:00:03]} g6 {[%emt 0:00:05]} 2. d4 {[%emt 0:00:07]} Bg7 {[%emt 0:00:02]} 3. Nf3 {[%emt 0:00:07]} d6 {[%emt 0:00:02]} 4. Nc3 {[%emt 0:00:04]} a6 {[%emt 0:00:07]} 5. Bf4 {[%emt 0:00:27]} h6 {[%emt 0:00:11]} 6. Qd2 {[%emt 0:00:21]} Bg4 {[%emt 0:00:11]} 7. h3 {[%emt 0:00:15]} Bxf3 {[%emt 0:00:03]} 8. gxf3 {[%emt 0:00:02]} Nc6 {[%emt 0:00:02]} 9. Be3 {[%emt 0:00:18]} e5 {[%emt 0:00:29]} 10. dxe5 {[%emt 0:01:09]} dxe5 {[%emt 0:00:45]} 11. Qxd8+ {[%emt 0:00:44]} Nxd8 {[%emt 0:00:02]} 12. Nd5 {[%emt 0:00:42]} Ne6 {[%emt 0:00:02]} 13. O-O-O {[%emt 0:00:05]} O-O-O {[%emt 0:00:03]} 14. Bc4 {[%emt 0:00:55]} Rd6 {[%emt 0:01:24]} 15. f4 {[%emt 0:01:14]} g5 {[%emt 0:00:04]} 16. f5 {[%emt 0:00:54]} Nd8 {[%emt 0:00:18]} 17. Bb3 {[%emt 0:00:19]} Nf6 {[%emt 0:00:25]} 18. Bc5 {[%emt 0:02:55]} Nxe4 {[%emt 0:00:29]} 19. Bxd6 {[%emt 0:00:18]} Nxd6 {[%emt 0:00:02]} 20. f6 {[%emt 0:01:22]} Bf8 {[%emt 0:00:07]} 21. Rhe1 {[%emt 0:00:30]} Nc6 {[%emt 0:00:01]} 22. c3 {[%emt 0:00:13]} Kd7 {[%emt 0:00:11]} *

[Event "56th Biel Festival Rapid 2023"]
[Site "Biel"]
[Date "2024.04.13"]
[Round "9.26"]
[White "Sai Mahati A"]
[Black "Angst, Robin"]
[Result "*"]
[WhiteElo "1669"]
[BlackElo "2215"]
[PlyCount "40"]
[EventDate "2023.07.16"]
[EventType "swiss"]
[EventCountry "SUI"]
[TimeControl "900+5"]

1. d4 {[%emt 0:00:03]} f5 {[%emt 0:00:01]} 2. c4 {[%emt 0:00:05]} Nf6 {[%emt 0:00:01]} 3. Nf3 {[%emt 0:00:02]} g6 {[%emt 0:00:02]} 4. g3 {[%emt 0:00:11]} Bg7 {[%emt 0:00:05]} 5. Bg2 {[%emt 0:00:02]} O-O {[%emt 0:00:00]} 6. O-O {[%emt 0:00:07]} d6 {[%emt 0:00:00]} 7. Nc3 {[%emt 0:00:12]} Nc6 {[%emt 0:00:01]} 8. d5 {[%emt 0:00:07]} Na5 {[%emt 0:00:04]} 9. Qa4 {[%emt 0:00:15]} c5 {[%emt 0:00:02]} 10. Bd2 {[%emt 0:00:41]} Bd7 {[%emt 0:01:27]} 11. Nb5 {[%emt 0:01:36]} b6 {[%emt 0:00:18]} 12. Bxa5 {[%emt 0:00:32]} bxa5 {[%emt 0:00:02]} 13. Qd1 {[%emt 0:00:55]} Ne4 {[%emt 0:00:08]} 14. Nd2 {[%emt 0:00:32]} Bxb2 {[%emt 0:00:27]} 15. Nxe4 {[%emt 0:01:13]} Bxa1 {[%emt 0:00:52]} 16. Nxc5 {[%emt 0:01:49]} Bg7 {[%emt 0:01:08]} 17. Nxd7 {[%emt 0:01:40]} Qxd7 {[%emt 0:00:02]} 18. Nd4 {[%emt 0:00:07]} Bxd4 {[%emt 0:01:46]} 19. Qxd4 {[%emt 0:00:02]} Rac8 {[%emt 0:00:05]} 20. Rc1 {[%emt 0:01:22]} Rc5 {[%emt 0:00:00]} *

[Event "56th Biel Festival Rapid 2023"]
[Site "Biel"]
[Date "2024.04.13"]
[Round "9.40"]
[White "Lang, Fabian"]
[Black "Chervet, Olivier"]
[Result "*"]
[WhiteElo "1914"]
[BlackElo "1963"]
[PlyCount "38"]
[EventDate "2023.07.16"]
[EventType "swiss"]
[EventCountry "SUI"]
[TimeControl "900+5"]

1. d4 {[%emt 0:00:05]} d5 {[%emt 0:00:01]} 2. Nf3 {[%emt 0:00:06]} Nc6 {[%emt 0:00:02]} 3. e3 {[%emt 0:00:05]} Bg4 {[%emt 0:00:28]} 4. c4 {[%emt 0:00:08]} e6 {[%emt 0:00:28]} 5. a3 {[%emt 0:00:05]} Nf6 {[%emt 0:00:20]} 6. Nc3 {[%emt 0:00:02]} Bd6 {[%emt 0:00:21]} 7. c5 {[%emt 0:00:57]} Be7 {[%emt 0:00:03]} 8. b4 {[%emt 0:00:37]} a6 {[%emt 0:00:10]} 9. Be2 {[%emt 0:00:16]} O-O {[%emt 0:00:04]} 10. Bb2 {[%emt 0:00:45]} Nd7 {[%emt 0:02:52]} 11. O-O {[%emt 0:00:29]} f5 {[%emt 0:00:05]} 12. Ne5 {[%emt 0:00:34]} Bxe2 {[%emt 0:00:41]} 13. Nxe2 {[%emt 0:00:03]} g5 {[%emt 0:01:41]} 14. f4 {[%emt 0:01:03]} Ndxe5 {[%emt 0:01:01]} 15. dxe5 {[%emt 0:00:08]} g4 {[%emt 0:00:28]} 16. g3 {[%emt 0:00:24]} h5 {[%emt 0:00:21]} 17. Bd4 {[%emt 0:01:11]} h4 {[%emt 0:00:18]} 18. Kf2 {[%emt 0:00:42]} Kf7 {[%emt 0:00:05]} 19. Rh1 {[%emt 0:00:44]} Rh8 {[%emt 0:00:06]} *

[Event "56th Biel Festival Rapid 2023"]
[Site "Biel"]
[Date "2024.04.13"]
[Round "9.42"]
[White "Tedone, Francesco"]
[Black "Binzegger, Urs"]
[Result "*"]
[WhiteElo "1577"]
[BlackElo "1828"]
[PlyCount "60"]
[EventDate "2023.07.16"]
[EventType "swiss"]
[EventCountry "SUI"]
[TimeControl "900+5"]

1. e4 {[%emt 0:00:02]} e5 {[%emt 0:00:04]} 2. Nf3 {[%emt 0:00:06]} Nc6 {[%emt 0:00:02]} 3. c3 {[%emt 0:00:03]} Nf6 {[%emt 0:00:09]} 4. d4 {[%emt 0:00:01]} exd4 {[%emt 0:00:02]} 5. e5 {[%emt 0:00:04]} Ng4 {[%emt 0:00:02]} 6. cxd4 {[%emt 0:00:04]} d5 {[%emt 0:00:12]} 7. h3 {[%emt 0:00:06]} Nh6 {[%emt 0:00:01]} 8. Bxh6 {[%emt 0:00:21]} gxh6 {[%emt 0:00:02]} 9. Nc3 {[%emt 0:00:02]} Be6 {[%emt 0:00:11]} 10. Bd3 {[%emt 0:00:24]} Be7 {[%emt 0:00:16]} 11. a3 {[%emt 0:00:16]} Qd7 {[%emt 0:00:23]} 12. Qd2 {[%emt 0:00:12]} O-O-O {[%emt 0:00:14]} 13. Rc1 {[%emt 0:00:37]} Kb8 {[%emt 0:00:02]} 14. Bb5 {[%emt 0:00:12]} Rdg8 {[%emt 0:00:07]} 15. Bxc6 {[%emt 0:00:25]} Qxc6 {[%emt 0:00:39]} 16. Ne2 {[%emt 0:00:10]} Qd7 {[%emt 0:00:04]} 17. Ng3 {[%emt 0:00:06]} h5 {[%emt 0:00:36]} 18. h4 {[%emt 0:00:31]} f5 {[%emt 0:00:33]} 19. Ng5 {[%emt 0:01:07]} h6 {[%emt 0:00:03]} 20. Nxe6 {[%emt 0:00:09]} Qxe6 {[%emt 0:00:03]} 21. Qc3 {[%emt 0:00:08]} Bd8 {[%emt 0:00:27]} 22. Nxh5 {[%emt 0:00:22]} Rxg2 {[%emt 0:00:43]} 23. Nf4 {[%emt 0:00:02]} Qg8 {[%emt 0:00:14]} 24. Nxg2 {[%emt 0:00:04]} Qxg2 {[%emt 0:00:02]} 25. Ke2 {[%emt 0:00:34]} Qg6 {[%emt 0:01:35]} 26. Rhg1 {[%emt 0:00:25]} Qf7 {[%emt 0:00:10]} 27. Qg3 {[%emt 0:00:20]} f4 {[%emt 0:00:28]} 28. Qg7 {[%emt 0:00:03]} f3+ {[%emt 0:00:28]} 29. Ke3 {[%emt 0:00:18]} Qe8 {[%emt 0:01:29]} 30. Rg6 {[%emt 0:00:35]} Qb5 {[%emt 0:00:59]} *

[Event "56th Biel Festival Rapid 2023"]
[Site "Biel"]
[Date "2024.04.13"]
[Round "9.50"]
[White "Girardin Elias"]
[Black "Zarriess, Benjamin"]
[Result "*"]
[WhiteElo "1419"]
[BlackElo "1698"]
[PlyCount "49"]
[EventDate "2023.07.16"]
[EventType "swiss"]
[EventCountry "SUI"]
[TimeControl "900+5"]

1. b3 {[%emt 0:00:03]} d5 {[%emt 0:00:04]} 2. Bb2 {[%emt 0:00:01]} Nf6 {[%emt 0:00:02]} 3. e3 {[%emt 0:00:02]} e6 {[%emt 0:00:03]} 4. Nf3 {[%emt 0:00:04]} Be7 {[%emt 0:00:02]} 5. c4 {[%emt 0:00:06]} O-O {[%emt 0:00:13]} 6. Be2 {[%emt 0:00:04]} dxc4 {[%emt 0:00:16]} 7. bxc4 {[%emt 0:00:02]} c5 {[%emt 0:00:16]} 8. O-O {[%emt 0:00:02]} b6 {[%emt 0:00:05]} 9. d3 {[%emt 0:00:18]} Nc6 {[%emt 0:00:11]} 10. Nbd2 {[%emt 0:00:01]} Bb7 {[%emt 0:00:03]} 11. Rb1 {[%emt 0:00:31]} Nb4 {[%emt 0:00:36]} 12. Qb3 {[%emt 0:00:37]} Nc6 {[%emt 0:00:20]} 13. a4 {[%emt 0:00:46]} Qc7 {[%emt 0:00:43]} 14. Bc3 {[%emt 0:00:20]} Rab8 {[%emt 0:00:59]} 15. Rb2 {[%emt 0:00:55]} Rfd8 {[%emt 0:01:42]} 16. Rfb1 {[%emt 0:00:14]} Ba8 {[%emt 0:00:08]} 17. Qd1 {[%emt 0:00:32]} h6 {[%emt 0:00:13]} 18. Nf1 {[%emt 0:00:09]} Ne4 {[%emt 0:00:40]} 19. Bd2 {[%emt 0:01:10]} Nxd2 {[%emt 0:00:21]} 20. Qxd2 {[%emt 0:00:02]} Bf6 {[%emt 0:00:14]} 21. Rb3 {[%emt 0:00:17]} Rd7 {[%emt 0:00:27]} 22. Qe1 {[%emt 0:01:07]} Rbd8 {[%emt 0:00:16]} 23. Ng3 {[%emt 0:00:32]} Na5 {[%emt 0:00:57]} 24. Ra3 {[%emt 0:00:28]} Bxf3 {[%emt 0:00:29]} 25. gxf3 {[%emt 0:00:50]} *